fUSD/lending_fUSD_20260528
["ID","MTS","AMOUNT","RATE_DAILY","PERIOD"]
[423198114,1779919851000,-447.10093912,0.00037749,2]
[423198113,1779919851000,-358.49116818,0.00037749,2]
[423198116,1779919851000,-150.0,0.00037808,7]
[423198117,1779919851000,-150.0,0.00037882,7]
[423198119,1779919851000,-150.0,0.00037955,7]
[423198120,1779919851000,-1587.0,0.00037976,11]
[423198118,1779919851000,-151.0,0.00037921,14]
[423198124,1779919851000,-695.0,0.00038,2]
[423198123,1779919851000,-150.0,0.00038,2]
[423198134,1779919851000,-1649.308,0.00038,120]
[423198110,1779919851000,-150.0,0.00037662,7]
[423198125,1779919851000,-216.97643336,0.00038,2]
[423198127,1779919851000,-161.28723522,0.00038,2]
[423198136,1779919851000,-1649.3,0.00038,120]
[423198138,1779919851000,-250.0,0.00038,30]
[423198139,1779919851000,-150.0,0.00038029,7]
[423198135,1779919851000,-1649.308,0.00038,120]
[423198132,1779919851000,-3413.0,0.00038,2]
[423198146,1779919851000,-150.0,0.0003815,2]
[423198133,1779919851000,-151.0,0.00038,120]
[423198131,1779919851000,-155.0,0.00038,120]
[423198171,1779919851000,-150.0,0.00038455,7]
[423198128,1779919851000,-617.53426553,0.00038,2]
[423198126,1779919851000,-159.65,0.00038,7]
[423198129,1779919851000,-215.46156935,0.00038,7]
[423198198,1779919852000,-250.0,0.000388,2]
[423198204,1779919852000,-150.0,0.00038836,7]
[423198200,1779919852000,-54591.0,0.000388,30]
[423198201,1779919852000,-2000.0,0.000388,7]
[423198199,1779919852000,-251.03060051,0.000388,2]
[423198196,1779919852000,-150.0,0.00038763,7]
[423198202,1779919852000,-157.89931683,0.00038825,3]
[423198207,1779919852000,-1066.90327,0.0003889,107]
[423198206,1779919852000,-150.0,0.00038851,7]
[423198203,1779919852000,-150.0,0.00038827,120]
[423198213,1779919852000,-16716.83136696,0.00038956,2]
[423198208,1779919852000,-1000.0,0.00038892,120]
[423198221,1779919852000,-419.8,0.00038992,2]
[423198214,1779919852000,-5000.0,0.00038961,2]
[423198211,1779919852000,-150.0,0.0003891,7]
[423198212,1779919852000,-152.0,0.00038953,7]
[423198210,1779919852000,-152.0,0.00038902,7]
[423198216,1779919852000,-5000.0,0.00038961,2]
[423198197,1779919852000,-250.0,0.000388,2]
[423198209,1779919852000,-151.0,0.000389,120]
[423198205,1779919852000,-150.0,0.00038851,7]
[423198195,1779919852000,-2317.0,0.00038752,11]
[423198176,1779919852000,-151.0,0.000385,120]
[423198189,1779919852000,-217.11801919,0.00038669,11]
[423198219,1779919852000,-1066.90327,0.0003899,108]
[423198173,1779919852000,-450.07,0.00038492,2]
[423198174,1779919852000,-613.48,0.00038493,30]
[423198181,1779919852000,-5000.0,0.00038563,2]
[423198177,1779919852000,-150.0,0.00038543,7]
[423198172,1779919852000,-150.0,0.00038469,7]
[423198179,1779919852000,-5000.0,0.00038563,2]
[423198175,1779919852000,-805.05,0.00038493,30]
[423198180,1779919852000,-5000.0,0.00038563,2]
[423198178,1779919852000,-157.89931683,0.00038551,3]
[423198182,1779919852000,-5000.0,0.00038563,2]
[423198185,1779919852000,-12300.7,0.000386,2]
[423198192,1779919852000,-167.38,0.000387,30]
[423198184,1779919852000,-12300.7,0.000386,2]
[423198183,1779919852000,-150.0,0.00038587,7]
[423198188,1779919852000,-150.0,0.00038616,7]
[423198187,1779919852000,-315.0,0.000386,2]
[423198191,1779919852000,-152.0,0.00038698,7]
[423198186,1779919852000,-925.0,0.000386,2]
[423198193,1779919852000,-181.4,0.0003871,60]
[423198190,1779919852000,-150.0,0.00038689,7]
[423198194,1779919852000,-150.0,0.00038724,2]
[423198215,1779919852000,-5000.0,0.00038961,2]
[423198218,1779919852000,-150.0,0.00038983,7]
[423198217,1779919852000,-150.0,0.00038983,7]
[423198248,1779919852000,-250.0,0.000392,2]
[423198251,1779919852000,-10000.0,0.00039204,2]
[423198245,1779919852000,-165.82126577,0.00039195,120]
[423198247,1779919852000,-250.0,0.000392,2]
[423198250,1779919852000,-150.0,0.00039203,7]
[423198249,1779919852000,-250.0,0.000392,2]
[423198252,1779919852000,-153.52,0.00039204,120]
[423198254,1779919852000,-153.52,0.00039254,120]
[423198253,1779919852000,-150.0,0.00039247,7]
[423198260,1779919852000,-1000.0,0.00039281,2]
[423198257,1779919852000,-1000.0,0.00039281,2]
[423198256,1779919852000,-1000.0,0.00039281,2]
[423198259,1779919852000,-1000.0,0.00039281,2]
[423198255,1779919852000,-150.0,0.00039277,7]
[423198262,1779919852000,-1000.0,0.00039281,2]
[423198261,1779919852000,-1000.0,0.00039281,2]
[423198264,1779919852000,-215.14828486,0.00039281,2]
[423198265,1779919852000,-429.0,0.00039283,2]
[423198263,1779919852000,-1000.0,0.00039281,2]
[423198266,1779919852000,-163.0,0.00039288,11]
[423198267,1779919852000,-1066.90328,0.0003929,112]
[423198246,1779919852000,-262.63931447,0.00039195,120]
[423198242,1779919852000,-152.0,0.0003918,7]
[423198258,1779919852000,-1000.0,0.00039281,2]
[423198238,1779919852000,-150.0,0.0003913,7]
[423198241,1779919852000,-165.82126579,0.00039178,120]
[423198220,1779919852000,-271.39,0.00038992,2]
[423198230,1779919852000,-157.89931683,0.00039099,3]
[423198229,1779919852000,-1066.90328,0.0003909,109]
[423198231,1779919852000,-12300.7,0.000391,2]
[423198223,1779919852000,-159.86484854,0.00039,4]
[423198233,1779919852000,-155.0,0.000391,120]
[423198234,1779919852000,-178.22697391,0.000391,30]
[423198228,1779919852000,-429.0,0.00039087,2]
[423198224,1779919852000,-2780000.0,0.00039,2]
[423198232,1779919852000,-215.46156935,0.000391,7]
[423198244,1779919852000,-1619.16695213,0.00039195,120]
[423198222,1779919852000,-410170.66428053,0.00039,2]
[423198227,1779919852000,-224.91,0.00039073,30]
[423198226,1779919852000,-1589.0,0.0003906,11]
[423198236,1779919852000,-150.0,0.00039115,7]
[423198235,1779919852000,-153.52,0.00039104,120]
[423198237,1779919852000,-327.81359689,0.00039125,2]
[423198243,1779919852000,-1066.90327,0.0003919,110]
[423198240,1779919852000,-153.52,0.00039154,120]
[423198239,1779919852000,-3548.0,0.00039133,2]
[423198225,1779919852000,-150.0,0.00039057,7]
[423198312,1779919853000,-300.0,0.00039373,10]
[423198296,1779919853000,-300.0,0.00039373,10]
[423198306,1779919853000,-300.0,0.00039373,10]
[423198309,1779919853000,-300.0,0.00039373,10]
[423198310,1779919853000,-300.0,0.00039373,10]
[423198305,1779919853000,-300.0,0.00039373,10]
[423198297,1779919853000,-300.0,0.00039373,10]
[423198300,1779919853000,-300.0,0.00039373,10]
[423198299,1779919853000,-300.0,0.00039373,10]
[423198298,1779919853000,-300.0,0.00039373,10]
[423198307,1779919853000,-300.0,0.00039373,10]
[423198304,1779919853000,-300.0,0.00039373,10]
[423198308,1779919853000,-300.0,0.00039373,10]
[423198324,1779919853000,-300.0,0.00039373,10]
[423198314,1779919853000,-300.0,0.00039373,10]
[423198316,1779919853000,-300.0,0.00039373,10]
[423198315,1779919853000,-300.0,0.00039373,10]
[423198317,1779919853000,-300.0,0.00039373,10]
[423198328,1779919853000,-300.0,0.00039373,10]
[423198318,1779919853000,-300.0,0.00039373,10]
[423198320,1779919853000,-300.0,0.00039373,10]
[423198329,1779919853000,-300.0,0.00039373,10]
[423198319,1779919853000,-300.0,0.00039373,10]
[423198321,1779919853000,-300.0,0.00039373,10]
[423198325,1779919853000,-300.0,0.00039373,10]
[423198295,1779919853000,-300.0,0.00039373,10]
[423198313,1779919853000,-300.0,0.00039373,10]
[423198292,1779919853000,-666.0,0.00039373,30]
[423198274,1779919853000,-169.09,0.00039328,120]
[423198294,1779919853000,-300.0,0.00039373,10]
[423198270,1779919853000,-200.43369,0.000393,18]
[423198268,1779919853000,-5800.0,0.000393,14]
[423198269,1779919853000,-200.0,0.000393,10]
[423198271,1779919853000,-153.52,0.00039304,120]
[423198272,1779919853000,-150.0,0.00039315,30]
[423198323,1779919853000,-300.0,0.00039373,10]
[423198273,1779919853000,-427.0,0.00039324,2]
[423198275,1779919853000,-177.42,0.00039328,120]
[423198276,1779919853000,-150.0,0.0003935,7]
[423198279,1779919853000,-5000.0,0.00039358,2]
[423198277,1779919853000,-153.52,0.00039354,120]
[423198278,1779919853000,-624.2,0.00039358,2]
[423198280,1779919853000,-5000.0,0.00039358,2]
[423198286,1779919853000,-150.0,0.00039372,2]
[423198291,1779919853000,-300.0,0.00039373,10]
[423198287,1779919853000,-500.97429037,0.00039372,2]
[423198288,1779919853000,-2110.0,0.00039372,2]
[423198290,1779919853000,-157.89931683,0.00039373,3]
[423198289,1779919853000,-45569.0388093,0.00039373,2]
[423198282,1779919853000,-151.0,0.0003937,14]
[423198284,1779919853000,-150.0,0.00039372,2]
[423198283,1779919853000,-394.89981555,0.00039371,2]
[423198281,1779919853000,-151.0,0.0003937,14]
[423198285,1779919853000,-1332.5838782,0.00039372,2]
[423198293,1779919853000,-666.0,0.00039373,30]
[423198301,1779919853000,-300.0,0.00039373,10]
[423198303,1779919853000,-300.0,0.00039373,10]
[423198302,1779919853000,-300.0,0.00039373,10]
[423198327,1779919853000,-300.0,0.00039373,10]
[423198311,1779919853000,-300.0,0.00039373,10]
[423198326,1779919853000,-300.0,0.00039373,10]
[423198368,1779919853000,-165.82126579,0.00039452,120]
[423198366,1779919853000,-300.0,0.00039407,10]
[423198360,1779919853000,-2006.0,0.000394,7]
[423198356,1779919853000,-300.0,0.00039399,10]
[423198363,1779919853000,-153.52,0.00039404,120]
[423198361,1779919853000,-6063.0,0.00039402,2]
[423198358,1779919853000,-225.444314,0.000394,10]
[423198359,1779919853000,-151.0,0.000394,120]
[423198362,1779919853000,-931.0,0.00039402,2]
[423198370,1779919853000,-150.0,0.00039452,60]
[423198369,1779919853000,-150.0,0.00039452,60]
[423198371,1779919853000,-200.9528393,0.00039452,60]
[423198372,1779919853000,-507.0,0.00039452,60]
[423198379,1779919853000,-507.0,0.00039452,60]
[423198380,1779919853000,-507.0,0.00039452,60]
[423198375,1779919853000,-507.0,0.00039452,60]
[423198381,1779919853000,-507.0,0.00039452,60]
[423198373,1779919853000,-507.0,0.00039452,60]
[423198378,1779919853000,-507.0,0.00039452,60]
[423198376,1779919853000,-507.0,0.00039452,60]
[423198374,1779919853000,-507.0,0.00039452,60]
[423198377,1779919853000,-507.0,0.00039452,60]
[423198383,1779919853000,-507.0,0.00039452,60]
[423198387,1779919853000,-507.0,0.00039452,60]
[423198385,1779919853000,-507.0,0.00039452,60]
[423198382,1779919853000,-507.0,0.00039452,60]
[423198386,1779919853000,-507.0,0.00039452,60]
[423198367,1779919853000,-150.0,0.00039424,7]
[423198365,1779919853000,-267.92294629,0.00039407,30]
[423198384,1779919853000,-507.0,0.00039452,60]
[423198357,1779919853000,-216.18,0.000394,14]
[423198364,1779919853000,-666.0,0.00039407,30]
[423198341,1779919853000,-151.0,0.00039374,120]
[423198342,1779919853000,-155.0,0.00039374,120]
[423198340,1779919853000,-154.0,0.00039374,120]
[423198332,1779919853000,-151.0,0.00039374,30]
[423198335,1779919853000,-159.0,0.00039374,120]
[423198331,1779919853000,-151.0,0.00039374,30]
[423198330,1779919853000,-240.87599505,0.00039373,10]
[423198333,1779919853000,-154.0,0.00039374,120]
[423198338,1779919853000,-155.0,0.00039374,120]
[423198336,1779919853000,-152.0,0.00039374,120]
[423198334,1779919853000,-168.0,0.00039374,120]
[423198388,1779919853000,-507.0,0.00039452,60]
[423198339,1779919853000,-155.0,0.00039374,120]
[423198322,1779919853000,-300.0,0.00039373,10]
[423198343,1779919853000,-163.0,0.00039374,120]
[423198337,1779919853000,-165.0,0.00039374,120]
[423198353,1779919853000,-151.0,0.00039397,14]
[423198352,1779919853000,-151.0,0.00039397,14]
[423198354,1779919853000,-151.0,0.00039397,14]
[423198346,1779919853000,-150.0,0.0003938,7]
[423198347,1779919853000,-1066.90327,0.0003939,113]
[423198350,1779919853000,-151.0,0.00039397,14]
[423198355,1779919853000,-300.0,0.00039398,10]
[423198348,1779919853000,-300.0,0.00039391,10]
[423198351,1779919853000,-151.0,0.00039397,14]
[423198344,1779919853000,-156.0,0.00039374,120]
[423198345,1779919853000,-249.0,0.00039374,120]
[423198349,1779919853000,-2315.0,0.00039392,11]
[423198426,1779919854000,-250.0,0.000396,2]
[423198428,1779919854000,-859.0,0.00039608,30]
[423198424,1779919854000,-150.0,0.0003957,7]
[423198425,1779919854000,-250.0,0.000396,2]
[423198427,1779919854000,-153.52,0.00039604,120]
[423198423,1779919854000,-319.39816575,0.00039569,2]
[423198421,1779919854000,-3769.56182965,0.00039569,2]
[423198422,1779919854000,-11639.73365757,0.00039569,2]
[423198430,1779919854000,-859.0,0.00039608,30]
[423198432,1779919854000,-859.0,0.00039608,30]
[423198429,1779919854000,-859.0,0.00039608,30]
[423198442,1779919854000,-1000.0,0.00039609,2]
[423198443,1779919854000,-1000.0,0.00039609,2]
[423198440,1779919854000,-1000.0,0.00039609,2]
[423198431,1779919854000,-859.0,0.00039608,30]
[423198434,1779919854000,-1000.0,0.00039609,2]
[423198441,1779919854000,-1000.0,0.00039609,2]
[423198420,1779919854000,-153.52,0.00039554,120]
[423198436,1779919854000,-1000.0,0.00039609,2]
[423198435,1779919854000,-1000.0,0.00039609,2]
[423198439,1779919854000,-1000.0,0.00039609,2]
[423198437,1779919854000,-1000.0,0.00039609,2]
[423198438,1779919854000,-1000.0,0.00039609,2]
[423198444,1779919854000,-1000.0,0.00039609,2]
[423198448,1779919854000,-217.92601144,0.00039644,7]
[423198447,1779919854000,-150.0,0.00039644,120]
[423198433,1779919854000,-1000.0,0.00039609,2]
[423198418,1779919854000,-800.0,0.00039545,14]
[423198411,1779919854000,-800.0,0.00039545,14]
[423198416,1779919854000,-800.0,0.00039545,14]
[423198446,1779919854000,-212.27532194,0.00039644,7]
[423198393,1779919854000,-507.0,0.00039452,60]
[423198392,1779919854000,-507.0,0.00039452,60]
[423198389,1779919854000,-507.0,0.00039452,60]
[423198391,1779919854000,-507.0,0.00039452,60]
[423198390,1779919854000,-507.0,0.00039452,60]
[423198395,1779919854000,-525.32190299,0.00039452,60]
[423198394,1779919854000,-507.0,0.00039452,60]
[423198398,1779919854000,-150.0,0.00039452,30]
[423198397,1779919854000,-150.0,0.00039452,30]
[423198405,1779919854000,-666.0,0.0003948,30]
[423198396,1779919854000,-150.0,0.00039452,30]
[423198399,1779919854000,-150.0,0.00039452,30]
[423198400,1779919854000,-257.00612891,0.00039452,30]
[423198402,1779919854000,-196.09220988,0.00039456,2]
[423198403,1779919854000,-1619.16695213,0.00039469,120]
[423198404,1779919854000,-300.0,0.0003948,10]
[423198407,1779919854000,-150.0,0.00039497,7]
[423198417,1779919854000,-800.0,0.00039545,14]
[423198409,1779919854000,-153.52,0.00039504,120]
[423198408,1779919854000,-2328.30927666,0.00039502,30]
[423198406,1779919854000,-20820.36080827,0.00039481,2]
[423198410,1779919854000,-666.0,0.00039544,30]
[423198415,1779919854000,-800.0,0.00039545,14]
[423198414,1779919854000,-800.0,0.00039545,14]
[423198413,1779919854000,-800.0,0.00039545,14]
[423198412,1779919854000,-800.0,0.00039545,14]
[423198419,1779919854000,-2791.29,0.00039545,2]
[423198401,1779919854000,-153.52,0.00039454,120]
[423198455,1779919854000,-235.31065186,0.00039655,2]
[423198456,1779919854000,-151.0,0.00039655,30]
[423198478,1779919854000,-1146.06121925,0.00039669,2]
[423198481,1779919854000,-318.54388998,0.00039669,2]
[423198486,1779919854000,-500.0,0.00039669,7]
[423198488,1779919854000,-500.0,0.00039669,7]
[423198483,1779919854000,-10019.36876412,0.00039669,2]
[423198487,1779919854000,-500.0,0.00039669,7]
[423198485,1779919854000,-500.0,0.00039669,7]
[423198484,1779919854000,-500.0,0.00039669,7]
[423198491,1779919854000,-500.0,0.00039669,7]
[423198492,1779919854000,-500.0,0.00039669,7]
[423198490,1779919854000,-500.0,0.00039669,7]
[423198501,1779919854000,-500.0,0.00039669,7]
[423198493,1779919854000,-500.0,0.00039669,7]
[423198498,1779919854000,-500.0,0.00039669,7]
[423198494,1779919854000,-500.0,0.00039669,7]
[423198496,1779919854000,-500.0,0.00039669,7]
[423198497,1779919854000,-500.0,0.00039669,7]
[423198499,1779919854000,-500.0,0.00039669,7]
[423198495,1779919854000,-500.0,0.00039669,7]
[423198500,1779919854000,-500.0,0.00039669,7]
[423198504,1779919854000,-500.0,0.00039669,120]
[423198506,1779919854000,-500.0,0.00039669,120]
[423198503,1779919854000,-500.0,0.00039669,7]
[423198507,1779919854000,-414.9547504,0.00039669,120]
[423198505,1779919854000,-500.0,0.00039669,120]
[423198508,1779919854000,-500.0,0.00039669,120]
[423198445,1779919854000,-1066.34499946,0.00039609,2]
[423198482,1779919854000,-558.95750944,0.00039669,2]
[423198480,1779919854000,-500.0,0.00039669,2]
[423198502,1779919854000,-500.0,0.00039669,7]
[423198489,1779919854000,-500.0,0.00039669,7]
[423198449,1779919854000,-150.0,0.00039644,7]
[423198479,1779919854000,-180.0,0.00039669,2]
[423198451,1779919854000,-150.0,0.00039644,7]
[423198452,1779919854000,-150.0,0.00039644,7]
[423198453,1779919854000,-168.73820176,0.00039644,7]
[423198450,1779919854000,-272.82919498,0.00039644,7]
[423198454,1779919854000,-153.52,0.00039654,120]
[423198458,1779919854000,-200.0,0.00039655,90]
[423198459,1779919854000,-200.0,0.00039655,90]
[423198465,1779919854000,-200.0,0.00039655,90]
[423198463,1779919854000,-200.0,0.00039655,90]
[423198464,1779919854000,-200.0,0.00039655,90]
[423198462,1779919854000,-200.0,0.00039655,90]
[423198457,1779919854000,-200.0,0.00039655,90]
[423198461,1779919854000,-200.0,0.00039655,90]
[423198473,1779919854000,-200.0,0.00039655,90]
[423198474,1779919854000,-200.0,0.00039655,90]
[423198460,1779919854000,-200.0,0.00039655,90]
[423198475,1779919854000,-288.082047,0.00039655,90]
[423198470,1779919854000,-200.0,0.00039655,90]
[423198467,1779919854000,-200.0,0.00039655,90]
[423198476,1779919854000,-822.49908156,0.00039668,120]
[423198472,1779919854000,-200.0,0.00039655,90]
[423198477,1779919854000,-741492.34595381,0.00039669,30]
[423198469,1779919854000,-200.0,0.00039655,90]
[423198468,1779919854000,-200.0,0.00039655,90]
[423198466,1779919854000,-200.0,0.00039655,90]
[423198471,1779919854000,-200.0,0.00039655,90]
[423198545,1779919855000,-1730.15515956,0.00039669,10]
[423198551,1779919855000,-502.78629202,0.00039669,14]
[423198549,1779919855000,-344.95621997,0.00039669,120]
[423198548,1779919855000,-167.9355991,0.00039669,120]
[423198543,1779919855000,-1729.97,0.00039669,10]
[423198542,1779919855000,-500.0,0.00039669,120]
[423198541,1779919855000,-1729.97,0.00039669,10]
[423198544,1779919855000,-500.0,0.00039669,120]
[423198546,1779919855000,-500.0,0.00039669,120]
[423198547,1779919855000,-200.8725066,0.00039669,120]
[423198553,1779919855000,-500.0,0.00039669,120]
[423198550,1779919855000,-500.0,0.00039669,14]
[423198563,1779919855000,-500.0,0.00039669,120]
[423198567,1779919855000,-3703.54,0.00039669,120]
[423198552,1779919855000,-500.0,0.00039669,120]
[423198556,1779919855000,-500.0,0.00039669,120]
[423198555,1779919855000,-500.0,0.00039669,120]
[423198554,1779919855000,-606.77997374,0.00039669,120]
[423198558,1779919855000,-427.74621557,0.00039669,120]
[423198561,1779919855000,-151.0,0.00039669,120]
[423198560,1779919855000,-504.51035548,0.00039669,120]
[423198559,1779919855000,-562.80457001,0.00039669,120]
[423198562,1779919855000,-165.24769759,0.00039669,120]
[423198557,1779919855000,-500.0,0.00039669,120]
[423198565,1779919855000,-500.0,0.00039669,120]
[423198568,1779919855000,-3703.54,0.00039669,120]
[423198537,1779919855000,-1729.97,0.00039669,10]
[423198564,1779919855000,-500.0,0.00039669,120]
[423198536,1779919855000,-500.0,0.00039669,120]
[423198514,1779919855000,-500.0,0.00039669,120]
[423198533,1779919855000,-1729.97,0.00039669,10]
[423198569,1779919855000,-3703.54,0.00039669,120]
[423198509,1779919855000,-500.0,0.00039669,120]
[423198513,1779919855000,-500.0,0.00039669,120]
[423198510,1779919855000,-500.0,0.00039669,120]
[423198511,1779919855000,-500.0,0.00039669,120]
[423198512,1779919855000,-500.0,0.00039669,120]
[423198516,1779919855000,-377.04437348,0.00039669,120]
[423198527,1779919855000,-1729.97,0.00039669,10]
[423198515,1779919855000,-500.0,0.00039669,120]
[423198517,1779919855000,-1729.97,0.00039669,10]
[423198526,1779919855000,-1729.97,0.00039669,10]
[423198518,1779919855000,-1729.97,0.00039669,10]
[423198519,1779919855000,-1729.97,0.00039669,10]
[423198535,1779919855000,-1729.97,0.00039669,10]
[423198525,1779919855000,-1729.97,0.00039669,10]
[423198522,1779919855000,-1729.97,0.00039669,10]
[423198521,1779919855000,-1729.97,0.00039669,10]
[423198524,1779919855000,-1729.97,0.00039669,10]
[423198523,1779919855000,-1729.97,0.00039669,10]
[423198528,1779919855000,-1729.97,0.00039669,10]
[423198538,1779919855000,-500.0,0.00039669,120]
[423198540,1779919855000,-500.0,0.00039669,120]
[423198539,1779919855000,-1729.97,0.00039669,10]
[423198531,1779919855000,-1729.97,0.00039669,10]
[423198529,1779919855000,-1729.97,0.00039669,10]
[423198530,1779919855000,-1729.97,0.00039669,10]
[423198532,1779919855000,-1729.97,0.00039669,10]
[423198534,1779919855000,-1729.97,0.00039669,10]
[423198520,1779919855000,-1729.97,0.00039669,10]
[423198575,1779919855000,-3703.54,0.00039669,120]
[423198631,1779919855000,-2315.18,0.00039669,120]
[423198571,1779919855000,-3703.54,0.00039669,120]
[423198608,1779919855000,-503.01081891,0.00039669,2]
[423198607,1779919855000,-576.4167115,0.00039669,120]
[423198614,1779919855000,-2315.18,0.00039669,120]
[423198605,1779919855000,-500.0,0.00039669,120]
[423198603,1779919855000,-522.38411847,0.00039669,120]
[423198613,1779919855000,-2315.18,0.00039669,120]
[423198610,1779919855000,-2315.18,0.00039669,120]
[423198611,1779919855000,-2315.18,0.00039669,120]
[423198615,1779919855000,-2315.18,0.00039669,120]
[423198606,1779919855000,-155.42494154,0.00039669,120]
[423198612,1779919855000,-2315.18,0.00039669,120]
[423198609,1779919855000,-2315.18,0.00039669,120]
[423198620,1779919855000,-2315.18,0.00039669,120]
[423198604,1779919855000,-500.0,0.00039669,120]
[423198616,1779919855000,-2315.18,0.00039669,120]
[423198619,1779919855000,-2315.18,0.00039669,120]
[423198622,1779919855000,-2315.18,0.00039669,120]
[423198617,1779919855000,-2315.18,0.00039669,120]
[423198621,1779919855000,-2315.18,0.00039669,120]
[423198623,1779919855000,-2315.18,0.00039669,120]
[423198626,1779919855000,-2315.18,0.00039669,120]
[423198624,1779919855000,-2315.18,0.00039669,120]
[423198625,1779919855000,-2315.18,0.00039669,120]
[423198627,1779919855000,-2315.18,0.00039669,120]
[423198628,1779919855000,-2315.18,0.00039669,120]
[423198630,1779919855000,-2315.18,0.00039669,120]
[423198632,1779919855000,-2315.29134604,0.00039669,120]
[423198572,1779919855000,-3703.54,0.00039669,120]
[423198618,1779919855000,-2315.18,0.00039669,120]
[423198590,1779919855000,-3703.75943401,0.00039669,120]
[423198629,1779919855000,-2315.18,0.00039669,120]
[423198601,1779919855000,-500.0,0.00039669,120]
[423198599,1779919855000,-500.0,0.00039669,120]
[423198573,1779919855000,-3703.54,0.00039669,120]
[423198577,1779919855000,-3703.54,0.00039669,120]
[423198566,1779919855000,-500.0,0.00039669,120]
[423198574,1779919855000,-3703.54,0.00039669,120]
[423198576,1779919855000,-3703.54,0.00039669,120]
[423198578,1779919855000,-3703.54,0.00039669,120]
[423198588,1779919855000,-3703.54,0.00039669,120]
[423198587,1779919855000,-3703.54,0.00039669,120]
[423198580,1779919855000,-3703.54,0.00039669,120]
[423198581,1779919855000,-3703.54,0.00039669,120]
[423198582,1779919855000,-3703.54,0.00039669,120]
[423198583,1779919855000,-3703.54,0.00039669,120]
[423198579,1779919855000,-3703.54,0.00039669,120]
[423198570,1779919855000,-3703.54,0.00039669,120]
[423198584,1779919855000,-3703.54,0.00039669,120]
[423198585,1779919855000,-3703.54,0.00039669,120]
[423198602,1779919855000,-500.0,0.00039669,120]
[423198598,1779919855000,-500.0,0.00039669,120]
[423198597,1779919855000,-500.0,0.00039669,120]
[423198595,1779919855000,-500.0,0.00039669,120]
[423198594,1779919855000,-500.0,0.00039669,120]
[423198600,1779919855000,-208.70945608,0.00039669,120]
[423198596,1779919855000,-500.0,0.00039669,120]
[423198591,1779919855000,-500.0,0.00039669,120]
[423198592,1779919855000,-500.0,0.00039669,120]
[423198589,1779919855000,-3703.54,0.00039669,120]
[423198586,1779919855000,-3703.54,0.00039669,120]
[423198593,1779919855000,-500.0,0.00039669,120]
[423198677,1779919856000,-4157.19,0.00039669,120]
[423198676,1779919856000,-4157.19,0.00039669,120]
[423198673,1779919856000,-4157.19,0.00039669,120]
[423198668,1779919856000,-4157.19,0.00039669,120]
[423198665,1779919856000,-837.33512002,0.00039669,120]
[423198669,1779919856000,-4157.19,0.00039669,120]
[423198670,1779919856000,-4157.19,0.00039669,120]
[423198663,1779919856000,-837.32,0.00039669,120]
[423198664,1779919856000,-837.32,0.00039669,120]
[423198662,1779919856000,-837.32,0.00039669,120]
[423198666,1779919856000,-4157.19,0.00039669,120]
[423198667,1779919856000,-4157.19,0.00039669,120]
[423198683,1779919856000,-4157.19,0.00039669,120]
[423198684,1779919856000,-4157.19,0.00039669,120]